[Event "Swiss Championship U14 2022"]
[Site "Biel"]
[Date "2022.07.19"]
[Round "3.4"]
[White "Artan, Tamir"]
[Black "Gut, Lionel"]
[Result "1/2-1/2"]
[ECO "B94"]
[WhiteElo "1590"]
[BlackElo "1957"]
[Annotator "TA"]
[PlyCount "78"]
[EventDate "2022.07.18"]
[EventType "swiss"]
[EventCountry "SUI"]
[SourceTitle "playchess.com"]
[Source "ChessBase"]
[SourceQuality "1"]
[TimeControl "5400+30"]

{[%evp 12,78,16,6,14,-22,41,12,27,6,166,170,213,204,229,242,237,223,314,298,299,209,415,242,239,201,245,215,212,241,239,0,0,0,0,0,100,-162,-145,-126,0,0,0,0,0,0,0,0,0,0,0,0,0,0,0,0,0,0,0,0,0,0,0,0,0,0,0,0,0]} 1. e4 {[%emt 0:00:02]} c5 {[%emt 0:00:05]} 2. Nf3 {[%emt 0:00:01]} d6 {[%emt 0:00:05]} 3. d4 {[%emt 0:00:09]} cxd4 {[%emt 0:00:04]} 4. Nxd4 {[%emt 0:00:09]} Nf6 {[%emt 0:00:06]} 5. Nc3 {[%emt 0:00:06]} a6 {[%emt 0:00:03]} 6. Bg5 {[%emt 0:00:16]} Nbd7 {[%emt 0:00:26]} 7. Bc4 {[%emt 0:02:33]} Qb6 {[%emt 0:01:05]} 8. Qd2 {[%emt 0:05:29]} e6 {[%emt 0:01:39]} (8... Qxb2 $11 9. Rb1 Qa3) 9. O-O {[%emt 0:00:00]} Be7 {[%emt 0:01:05]} 10. Be3 {[%emt 0:00:00][%cal Od4e6] Threatens to win with Nxe6!} Qc7 $2 {[%emt 0:04:57] [#]} (10... Nc5 $11 {and Black is okay.}) 11. Bxe6 $1 $18 {[%emt 0:00:47][%mdl 512]} fxe6 {[%emt 0:04:53]} (11... O-O 12. Bb3) 12. Nxe6 {[%emt 0:00:38][%cal Bd4e6,Be6g7,Bg7f5][%mdl 32]} Qc4 {[%emt 0:00:51]} 13. Nxg7+ {[%emt 0:00:50]} Kf7 {[%emt 0:01:43]} 14. Nf5 {[%emt 0:14:58]} Nxe4 {[%emt 0:10:30]} (14... Bf8 {might work better.} 15. Nxd6+ Bxd6) 15. Nxe4 {[%emt 0:00:00]} (15. Qd4 Qxd4 16. Bxd4 Ndf6 17. Nh6+ (17. Nxe7 Nxc3 18. Rae1 Nce4 $11) 17... Kg6 18. Nxe4 Rf8 $11) 15... Qxe4 {[%emt 0:01:05]} 16. Nh6+ {[%emt 0:08:40]} (16. Nxd6+ Bxd6 17. Qxd6 Rg8 18. Qf4+ Qxf4 19. Bxf4 Nf6 $17) 16... Ke8 $2 {[%emt 0:05:58]} (16... Kf8 17. Rae1 Qg6) 17. Rfe1 {[%emt 0:09:36]} (17. Rae1 $142 Qe6 18. Bg5) 17... Ne5 {[%emt 0:04:34]} 18. f4 {[%emt 0:03:26]} Nc4 {[%emt 0:04:53]} 19. Qc3 {[%emt 0:00:00]} (19. Qd4 Qxd4 20. Bxd4 Rf8 $11) 19... Rf8 {[%emt 0:00:28]} 20. Bd2 {[%emt 0:11:49]} (20. Bd4 Qxf4 21. Qxc4 Qxh6 $11) 20... Qd5 {[%emt 0:07:23]} 21. Rxe7+ $2 {[%emt 0:00:00]} Kxe7 $11 {[%emt 0:00:08]} 22. Qg7+ {[%emt 0:00:00]} Ke8 {[%emt 0:04:35]} 23. Re1+ {[%emt 0:00:00]} Ne5 {[%emt 0:03:18]} (23... Be6 $1 $11 {keeps the balance.} 24. Bc3 Ne5 25. fxe5 Qc5+ 26. Kh1 Qc4) 24. Bc1 $2 {[%emt 0:03:09][%mdl 8192] Really sharp! White is much more active. The black rooks are badly placed.} (24. Be3 $1 $16 {is forced if you want to stay better.}) 24... Qd4+ $19 {[%emt 0:09:01]} 25. Kh1 {[%emt 0:10:40] [#]} Qf2 {[%emt 0:05:39]} (25... Be6 $1 $17 26. Ng4 (26. fxe5 Qxe5) 26... Bxg4 27. Qxg4 Kf7 28. Qh5+ Kg8 29. fxe5 Rae8 30. Qg5+ (30. e6 $2 Rxe6 31. Rd1 Re5 $19) 30... Kh8) 26. Rxe5+ $11 {[%emt 0:00:00] The position is equal.} dxe5 {[%emt 0:00:00]} 27. Qxe5+ {[%emt 0:00:00]} Kd8 {[%emt 0:00:12][%cal Rf2f1]} 28. Qg5+ $1 {[%emt 0:00:34]} Kc7 {[%emt 0:00:00][%cal Rf2e1]} 29. Qe5+ {[%emt 0:00:00]} Kd7 {[%emt 0:00:00][%cal Rf2f1]} 30. Qd5+ {[%emt 0:00:25]} Ke7 {[%emt 0:05:11][%cal Rf2f1]} 31. Qg5+ {[%emt 0:12:11]} Rf6 {[%emt 0:01:57][%cal Rf2e1]} 32. Ng8+ {[%emt 0:00:00][%mdl 64] Pin, Double Attack} Kf7 {[%emt 0:04:45][%cal Rf2e1]} 33. Qxf6+ {[%emt 0:00:00]} Kxg8 {[%emt 0:00:35][%cal Rf2e1]} 34. Qd8+ {[%emt 0:00:00]} Kf7 {[%emt 0:00:00][%cal Rf2e1]} 35. Qc7+ {[%emt 0:00:00]} Ke8 {[%emt 0:00:26][%cal Rf2f1]} (35... Kg6 $5 36. Qd6+ Kh5 37. Qe5+ Kg6 38. Qd6+ (38. Qe8+ Kg7 $11) 38... Kh5 39. Qe5+ Kg6 40. Qd6+ $11 (40. Qe8+ Kg7 $11)) 36. Qe5+ {[%emt 0:00:00]} Kd8 {[%emt 0:00:49][%cal Rf2f1]} 37. Qg5+ {[%emt 0:00:00]} Kc7 {[%emt 0:00:39][%cal Rf2f1]} 38. Qe5+ {[%emt 0:00:00]} Kc6 {[%emt 0:00:57][%cal Rf2f1]} 39. Qe4+ {[%emt 0:00:00]} Kd7 {[%emt 0:00:50] Weighted Error Value: White=0.26 (precise) /Black=0.38} 1/2-1/2

[Event "Swiss Championship U14 2022"]
[Site "Biel"]
[Date "2022.07.19"]
[Round "3.5"]
[White "Gut, Raphael"]
[Black "Stoll, Arturo"]
[Result "0-1"]
[ECO "E36"]
[WhiteElo "1898"]
[BlackElo "1434"]
[Annotator "NA RC COMBH"]
[PlyCount "112"]
[EventDate "2022.07.18"]
[EventType "swiss"]
[EventCountry "SUI"]
[SourceTitle "playchess.com"]
[Source "ChessBase"]
[SourceQuality "1"]
[TimeControl "5400+30"]

1. d4 {[%emt 0:00:04]} Nf6 {[%emt 0:01:00]} 2. c4 {[%emt 0:00:03]} e6 {[%emt 0:00:08]} 3. Nc3 {[%emt 0:00:04]} Bb4 {[%emt 0:00:51]} 4. Qc2 {[%emt 0:00:04]} d5 {[%emt 0:00:10]} 5. a3 {[%emt 0:00:22]} Bxc3+ {[%emt 0:00:11]} 6. Qxc3 {[%emt 0:00:05]} O-O {[%emt 0:00:18]} 7. Bg5 {[%emt 0:00:17]} c5 {[%emt 0:01:01]} 8. dxc5 {[%emt 0:02:44]} d4 {[%emt 0:00:25]} 9. Qf3 {[%emt 0:01:22] is recently more successful than 9.Qg3.} Nbd7 {[%emt 0:18:07] [#]} 10. Rd1 $146 {[%emt 0:13:39]} ({Predecessor:} 10. e3 h6 11. Bxf6 Nxf6 12. O-O-O e5 13. Ne2 d3 14. Nc3 Bg4 15. Rxd3 Qa5 16. Qxb7 {0-1 (32) Bok,B (2616)-So,W (2773) Chess.com INT 2022}) 10... Qa5+ {[%emt 0:10:42]} 11. b4 {[%emt 0:02:41]} Qa6 {[%emt 0:01:36]} (11... Qa4 $15) 12. e4 {[%emt 0:10:03]} e5 $1 {[%emt 0:05:09]} 13. Ne2 {[%emt 0:07:06]} Qc6 {[%emt 0:03:51]} 14. Ng3 {[%emt 0:01:26]} h6 {[%emt 0:00:10]} 15. Bd2 {[%emt 0:01:51]} a5 {[%emt 0:04:31]} (15... Nxc5 $1 $11 {remains equal.} 16. bxc5 Bg4) 16. Be2 {[%emt 0:06:25]} Re8 {[%emt 0:05:33]} 17. O-O {[%emt 0:02:17]} Nf8 {[%emt 0:04:02]} 18. Qd3 {[%emt 0:02:18]} Ng6 {[%emt 0:03:33]} 19. f3 {[%emt 0:03:14]} Kh7 {[%emt 0:09:28]} 20. Rfe1 {[%emt 0:00:15]} Be6 {[%emt 0:06:59]} 21. Bf1 {[%emt 0:02:49]} axb4 {[%emt 0:00:56]} 22. axb4 {[%emt 0:00:16]} Ra4 {[%emt 0:00:22]} 23. Nf5 {[%emt 0:03:11]} (23. Ra1 $16 Rea8 24. Rxa4 Qxa4 25. Nf5) 23... Rea8 {[%emt 0:01:08] [#]} 24. Rb1 $1 {[%emt 0:02:33]} Ra2 {[%emt 0:00:51]} 25. Rb3 {[%emt 0:03:17]} ({White should play} 25. Bc1 $16) 25... Qa4 {[%emt 0:00:24]} 26. Reb1 {[%emt 0:01:42]} Nh5 {[%emt 0:00:33]} (26... Qd7 $14 {is superior.}) 27. g3 {[%emt 0:12:31]} Bxc4 {[%emt 0:01:02]} 28. Qxc4 {[%emt 0:00:02]} Rxd2 {[%emt 0:00:01]} 29. R3b2 {[%emt 0:00:12]} Rxb2 {[%emt 0:00:27]} 30. Rxb2 {[%emt 0:00:05]} Qa1 {[%emt 0:00:18] [#]} 31. Rf2 {[%emt 0:00:23]} ({Better is} 31. Qc2 $1 $18) 31... Rf8 {[%emt 0:01:49]} 32. Nd6 {[%emt 0:02:49]} Ngf4 {[%emt 0:01:48]} 33. gxf4 {[%emt 0:02:52]} Nxf4 {[%emt 0:00:01]} 34. Nxb7 $17 {[%emt 0:04:41] [#]} (34. Qa2 $11 Qe1 35. Qd2 (35. Nxb7 Nh3+ 36. Kg2 Nxf2 $17)) 34... d3 {[%emt 0:00:14]} ({Black should try} 34... Qe1 $1 $17 35. Re2 Nxe2+ 36. Qxe2 Qxb4) 35. Qa2 {[%emt 0:02:50]} Qd4 {[%emt 0:01:15]} 36. Qb2 {[%emt 0:00:40]} Ne2+ {[%emt 0:00:21]} 37. Bxe2 {[%emt 0:03:19]} Qxb2 {[%emt 0:00:11]} 38. Bxd3 {[%emt 0:00:01]} Qxb4 {[%emt 0:00:17]} 39. c6 {[%emt 0:00:07]} Qb6 {[%emt 0:00:23]} 40. Nd6 {[%emt 0:04:24]} Qxc6 {[%emt 0:00:15]} 41. Nf5 {[%emt 0:00:06]} Qc1+ {[%emt 0:00:24]} 42. Bf1 {[%emt 0:01:01]} Rb8 {[%emt 0:00:32]} 43. Ng3 {[%emt 0:01:10]} g6 {[%emt 0:00:47]} 44. Kg2 {[%emt 0:01:18]} Rb1 {[%emt 0:00:50]} 45. Ra2 {[%emt 0:01:00]} Kg7 {[%emt 0:01:39]} 46. Re2 {[%emt 0:00:28]} h5 {[%emt 0:00:22]} 47. Rf2 {[%emt 0:00:50]} h4 {[%emt 0:01:42]} 48. Ne2 {[%emt 0:00:45]} Qg5+ {[%emt 0:00:10]} 49. Kh1 {[%emt 0:00:04]} h3 {[%emt 0:00:27]} 50. Ng3 {[%emt 0:00:21]} Qe3 {[%emt 0:00:38]} 51. Kg1 {[%emt 0:00:01]} Rb2 {[%emt 0:00:36]} 52. Ne2 {[%emt 0:01:53]} Ra2 {[%emt 0:00:36]} 53. f4 {[%emt 0:01:04]} exf4 {[%emt 0:00:23]} 54. e5 {[%emt 0:00:12]} f3 {[%emt 0:00:21]} 55. e6 {[%emt 0:00:01]} fxe2 {[%emt 0:00:24]} 56. exf7 {[%emt 0:00:46]} exf1=Q+ {[%emt 0:00:08]} 0-1

[Event "Swiss Championship U14 2022"]
[Site "Biel"]
[Date "2022.07.19"]
[Round "3.6"]
[White "Rappazzo, Johannes"]
[Black "Haas, Anthony"]
[Result "1/2-1/2"]
[ECO "C42"]
[WhiteElo "1761"]
[BlackElo "1638"]
[Annotator "NA RC COMBH"]
[PlyCount "73"]
[EventDate "2022.07.18"]
[EventType "swiss"]
[EventCountry "SUI"]
[SourceTitle "playchess.com"]
[Source "ChessBase"]
[SourceQuality "1"]
[TimeControl "5400+30"]

1. e4 {[%emt 0:00:01]} e5 {[%emt 0:00:01]} 2. Nf3 {[%emt 0:00:04]} Nf6 {[%emt 0:00:02]} 3. Nxe5 {[%emt 0:00:14]} d6 {[%emt 0:00:31]} 4. Nf3 {[%emt 0:00:05]} Nxe4 {[%emt 0:00:08]} 5. Nc3 Nxc3 6. dxc3 {[%emt 0:00:07]} Be7 {[%emt 0:00:17]} 7. Be3 {[%emt 0:00:13]} O-O {[%emt 0:00:16]} 8. Qd2 {[%emt 0:00:09]} Nd7 {[%emt 0:00:07]} 9. O-O-O {[%emt 0:00:20]} c6 {[%emt 0:00:49]} 10. h4 {[%emt 0:00:28]} d5 {[%emt 0:00:12]} 11. h5 {[%emt 0:00:11]} Nc5 {[%emt 0:32:40]} 12. h6 {[%emt 0:03:00]} g6 {[%emt 0:00:25]} 13. Bd4 {[%emt 0:20:50]} Ne4 {[%emt 0:02:30]} 14. Qe1 {[%emt 0:00:36]} Bf6 {[%emt 0:00:55]} 15. Bd3 {[%emt 0:01:30]} Re8 {[%emt 0:19:37]} 16. Qf1 {[%emt 0:01:40]} Bg4 {[%emt 0:03:40]} 17. Re1 {[%emt 0:10:05]} Bxd4 {[%emt 0:25:39]} 18. Nxd4 {[%emt 0:11:11]} Nc5 {[%emt 0:00:16]} 19. f3 {[%emt 0:03:28]} Qg5+ {[%emt 0:00:34]} 20. Kb1 {[%emt 0:00:23]} Rxe1+ {[%emt 0:00:14]} 21. Qxe1 {[%emt 0:00:04]} Nxd3 {[%emt 0:00:11]} 22. cxd3 {[%emt 0:00:04]} Bd7 {[%emt 0:00:08]} 23. Qf2 {[%emt 0:06:46]} b6 {[%emt 0:01:09]} 24. f4 {[%emt 0:10:05]} Qf6 {[%emt 0:01:00]} 25. Re1 {[%emt 0:17:08]} c5 {[%emt 0:00:36]} 26. Nc2 {[%emt 0:01:43]} Qf5 {[%emt 0:00:59]} 27. Qf3 {[%emt 0:01:34]} Re8 {[%emt 0:01:15]} 28. Rxe8+ {[%emt 0:02:09]} Bxe8 {[%emt 0:00:02]} 29. g4 {[%emt 0:00:13]} Qe6 {[%emt 0:00:30]} 30. d4 {[%emt 0:07:01]} cxd4 {[%emt 0:00:59]} 31. cxd4 {[%emt 0:00:20]} Bc6 {[%emt 0:01:02]} 32. b3 {[%emt 0:02:37]} Kf8 {[%emt 0:01:33]} 33. Qc3 {[%emt 0:00:40]} Qd6 {[%emt 0:02:08]} 34. Nb4 {[%emt 0:00:24]} Bb7 {[%emt 0:00:14]} 35. Nd3 {[%emt 0:00:14]} Ba6 {[%emt 0:01:22]} 36. Ne5 {[%emt 0:00:42]} Bb7 {[%emt 0:01:09]} 37. Kb2 {[%emt 0:03:06]} 1/2-1/2

[Event "Swiss Championship U14 2022"]
[Site "Biel"]
[Date "2022.07.19"]
[Round "3.7"]
[White "Bruessow, Nina"]
[Black "Guyer, Marlon"]
[Result "1-0"]
[ECO "C45"]
[WhiteElo "1655"]
[BlackElo "1590"]
[Annotator "NA RC COMBH"]
[PlyCount "53"]
[EventDate "2022.07.18"]
[EventType "swiss"]
[EventCountry "SUI"]
[SourceTitle "playchess.com"]
[Source "ChessBase"]
[SourceQuality "1"]
[TimeControl "5400+30"]

1. e4 {[%emt 0:00:02]} e5 {[%emt 0:00:05]} 2. Nf3 {[%emt 0:00:06]} Nc6 {[%emt 0:00:05]} 3. d4 {[%emt 0:00:07]} exd4 {[%emt 0:00:10]} 4. Nxd4 {[%emt 0:00:08]} Bc5 {[%emt 0:00:08]} 5. Nb3 {[%emt 0:00:06]} Bb6 {[%emt 0:00:07]} 6. Nc3 {[%emt 0:00:06]} Nf6 {[%emt 0:00:10]} 7. Qe2 {[%emt 0:00:37]} d6 {[%emt 0:01:54]} 8. Bg5 {[%emt 0:00:23]} h6 {[%emt 0:02:41]} 9. Bh4 {[%emt 0:00:31]} g5 {[%emt 0:05:15]} 10. Bg3 {[%emt 0:00:17]} Be6 {[%emt 0:08:11]} 11. O-O-O {[%emt 0:00:59]} Nd7 {[%emt 0:07:03]} 12. h4 {[%emt 0:09:14]} Qf6 {[%emt 0:07:48]} 13. hxg5 {[%emt 0:07:01]} hxg5 {[%emt 0:01:18]} 14. Rxh8+ {[%emt 0:00:14]} Qxh8 {[%emt 0:00:09]} 15. Qd2 {[%emt 0:01:29]} Qg7 {[%emt 0:03:06]} 16. Bb5 {[%emt 0:05:32]} Nce5 {[%emt 0:04:34]} 17. f3 {[%emt 0:13:35]} O-O-O {[%emt 0:01:39]} 18. Bf2 {[%emt 0:06:14]} Rh8 {[%emt 0:12:16]} 19. Nd4 {[%emt 0:15:41]} Rh2 {[%emt 0:14:32]} 20. Bg1 {[%emt 0:05:12]} Rh4 {[%emt 0:10:41]} 21. Nd5 {[%emt 0:09:39]} Bxd4 {[%emt 0:08:29]} 22. Qxd4 {[%emt 0:01:34]} c6 {[%emt 0:06:20]} 23. Ne7+ {[%emt 0:06:19]} Kd8 {[%emt 0:00:28]} 24. Qxd6 {[%emt 0:03:15]} cxb5 {[%emt 0:00:57]} 25. Bc5 {[%emt 0:00:24]} Ke8 {[%emt 0:02:56]} 26. Nf5 {[%emt 0:00:49]} Qf6 {[%emt 0:01:29]} 27. Ng7+ {[%emt 0:00:28]} 1-0

[Event "Swiss Championship U14 2022"]
[Site "Biel"]
[Date "2022.07.19"]
[Round "3.8"]
[White "Delangle, Alexander"]
[Black "Gade, Niels Severin"]
[Result "1-0"]
[ECO "B50"]
[WhiteElo "1612"]
[BlackElo "1505"]
[Annotator "NA RC COMBH"]
[PlyCount "96"]
[EventDate "2022.07.18"]
[EventType "swiss"]
[EventCountry "SUI"]
[SourceTitle "playchess.com"]
[Source "ChessBase"]
[SourceQuality "1"]
[TimeControl "5400+30"]

1. e4 {[%emt 0:00:01]} c5 {[%emt 0:00:07]} 2. Nf3 {[%emt 0:00:05]} d6 {[%emt 0:00:04]} 3. c3 {[%emt 0:00:07]} e5 {[%emt 0:00:22]} 4. Bd3 {[%emt 0:02:06]} Nf6 {[%emt 0:00:46]} 5. Bc2 {[%emt 0:01:01]} Bg4 {[%emt 0:04:43]} 6. h3 {[%emt 0:01:24]} Bxf3 {[%emt 0:00:13]} 7. Qxf3 {[%emt 0:00:36]} Nc6 {[%emt 0:01:17]} 8. d3 {[%emt 0:09:32]} Qb6 {[%emt 0:04:30]} 9. Nd2 {[%emt 0:05:45]} Qa6 {[%emt 0:02:40]} 10. O-O {[%emt 0:06:40]} Be7 {[%emt 0:01:33]} 11. Bb3 {[%emt 0:03:22]} b5 {[%emt 0:01:53]} 12. Bd5 {[%emt 0:08:04]} O-O {[%emt 0:06:18]} 13. Nb3 {[%emt 0:00:20]} Rac8 {[%emt 0:04:22]} 14. Be3 {[%emt 0:03:49]} Rc7 {[%emt 0:13:45]} 15. Rfd1 {[%emt 0:04:20]} Rfc8 {[%emt 0:05:24]} 16. a3 {[%emt 0:08:50]} Qb6 {[%emt 0:04:38]} 17. Nd2 {[%emt 0:00:00]} Qb7 {[%emt 0:05:05]} 18. Rab1 {[%emt 0:11:02]} Bd8 {[%emt 0:10:13]} 19. c4 {[%emt 0:00:00]} Nxd5 {[%emt 0:01:22]} 20. exd5 {[%emt 0:00:00]} Nd4 {[%emt 0:00:15]} 21. Bxd4 {[%emt 0:00:00]} cxd4 {[%emt 0:00:15]} 22. Ne4 {[%emt 0:00:04]} Be7 {[%emt 0:05:27]} 23. c5 {[%emt 0:01:57]} Qxd5 {[%emt 0:01:17]} 24. Nf6+ {[%emt 0:00:18]} Bxf6 {[%emt 0:00:52]} 25. Qxd5 {[%emt 0:00:14]} Rxc5 {[%emt 0:00:06]} 26. Qxd6 {[%emt 0:01:36]} h6 {[%emt 0:00:49]} 27. Qa6 {[%emt 0:06:08]} Bg5 {[%emt 0:03:27]} 28. b4 {[%emt 0:00:00]} R8c6 {[%emt 0:01:26]} 29. Qb7 {[%emt 0:00:53]} Rc2 {[%emt 0:02:27]} 30. Qb8+ {[%emt 0:02:28]} Kh7 {[%emt 0:00:48]} 31. Qxe5 {[%emt 0:01:06]} Rf6 {[%emt 0:01:10]} 32. Rf1 {[%emt 0:03:17]} Bf4 {[%emt 0:03:23]} 33. Qxd4 {[%emt 0:00:59]} Bc7 {[%emt 0:00:31]} 34. Rbc1 {[%emt 0:00:56]} Rxc1 {[%emt 0:01:03]} 35. Rxc1 {[%emt 0:00:59]} Bb6 {[%emt 0:00:19]} 36. Qe4+ {[%emt 0:00:00]} g6 {[%emt 0:00:25]} 37. Rc2 {[%emt 0:00:48]} Re6 {[%emt 0:00:18]} 38. Qf3 {[%emt 0:00:33]} Kg7 {[%emt 0:01:20]} 39. Re2 {[%emt 0:01:12]} Rf6 {[%emt 0:00:35]} 40. Qg3 {[%emt 0:01:16]} Rc6 {[%emt 0:00:00]} 41. Re7 {[%emt 0:01:06]} g5 {[%emt 0:02:17]} 42. h4 {[%emt 0:01:48]} Bd4 {[%emt 0:04:03]} 43. hxg5 {[%emt 0:01:21]} hxg5 {[%emt 0:00:27]} 44. Qxg5+ {[%emt 0:00:47]} Kf8 {[%emt 0:00:49]} 45. Rxf7+ {[%emt 0:00:38]} Kxf7 {[%emt 0:00:02]} 46. Qd5+ {[%emt 0:00:21]} Re6 {[%emt 0:00:15]} 47. Qxd4 {[%emt 0:01:19]} a6 {[%emt 0:00:44]} 48. g3 {[%emt 0:02:33]} Ke8 {[%emt 0:00:27]} 1-0

[Event "Swiss Championship U14 2022"]
[Site "Biel"]
[Date "2022.07.19"]
[Round "4.1"]
[White "Mattenberger, Matthias"]
[Black "Breyer, Philippe"]
[Result "1-0"]
[ECO "E42"]
[WhiteElo "2005"]
[BlackElo "1743"]
[Annotator "TA"]
[PlyCount "41"]
[EventDate "2022.07.18"]
[EventType "swiss"]
[EventCountry "SUI"]
[SourceTitle "playchess.com"]
[Source "ChessBase"]
[SourceQuality "1"]
[TimeControl "5400+30"]

{[%evp 14,41,23,8,26,41,47,29,33,32,63,45,120,125,103,120,111,101,375,357,368,339,420,412,400,408,439,433,413,417]} 1. d4 {[%emt 0:00:09]} Nf6 {[%emt 0:00:00]} 2. c4 {[%emt 0:00:22]} e6 {[%emt 0:00:02]} 3. Nc3 {[%emt 0:00:08]} Bb4 {[%emt 0:00:01]} 4. e3 b6 {[%emt 0:00:11]} 5. Nge2 {[%emt 0:00:07]} c5 {[%emt 0:00:06]} 6. a3 {[%emt 0:00:16]} Ba5 {[%emt 0:00:01]} 7. Rb1 {[%emt 0:00:14]} Na6 {[%emt 0:00:02]} 8. g3 {[%emt 0:00:14]} Bb7 {[%emt 0:00:02] Against Bg2. E42: Nimzo-Indian: Rubinstein: 4...c5 5 Ne2.} 9. d5 $1 {[%emt 0:00:08]} b5 {[%emt 0:00:06]} 10. b3 {[%emt 0:00:02]} O-O {[%emt 0:08:01] White has an edge.} 11. Bg2 {[%emt 0:00:47] [#]} exd5 $146 {[%emt 0:01:28]} ({Predecessor:} 11... b4 12. axb4 Nxb4 13. e4 exd5 14. exd5 Na2 15. Bd2 Nxc3 16. Bxc3 Bxc3+ 17. Nxc3 Re8+ {½-½ (42) Lenderman,A (2539)-Smith,B (2448) Arlington 2013}) 12. O-O {[%emt 0:00:19]} Nc7 {[%emt 0:12:33]} ({Black should try} 12... bxc4 $14 13. bxc4 Rb8) 13. b4 {[%emt 0:13:51]} Bb6 {[%emt 0:00:53]} 14. bxc5 {[%emt 0:16:19] White is more active.} Bxc5 {[%emt 0:00:48]} 15. Nxb5 {[%emt 0:01:48]} dxc4 $2 {[%emt 0:09:14][%mdl 8192] [#]} 16. Bxb7 $18 {[%emt 0:01:03]} Rb8 {[%emt 0:00:45]} 17. Nbd4 {[%emt 0:08:53]} Ncd5 {[%emt 0:00:50]} 18. Qc2 {[%emt 0:02:10]} Qc7 {[%emt 0:04:41]} 19. Bxd5 {[%emt 0:01:38]} ({Weaker is} 19. Qxc4 Nb6 20. Rxb6 Qxb6 $18) 19... Nxd5 {[%emt 0:00:07]} 20. Rxb8 {[%emt 0:00:40]} Rxb8 {[%emt 0:00:02]} 21. Qxc4 {[%emt 0:01:45] Black got outplayed after the opening.  Weighted Error Value: White=0.07 (flawless) /Black=0.72} 1-0